fUSD/lending_fUSD_20250105
["ID","MTS","AMOUNT","RATE_DAILY","PERIOD"]
[347806288,1736119838903,-500.0,0.00011899,2]
[347806289,1736119838912,-500.0,0.00011899,2]
[347806290,1736119838921,-500.0,0.00011899,2]
[347806291,1736119838931,-500.0,0.00011899,2]
[347806292,1736119838940,-500.0,0.00011899,2]
[347806293,1736119838949,-500.23604316,0.00011899,2]
[347806294,1736119838958,-500.0,0.00011899,2]
[347806295,1736119838967,-500.0,0.00011899,2]
[347806296,1736119838977,-500.0,0.00011899,2]
[347806297,1736119838986,-391.0924263,0.00011899,2]
[347806298,1736119839281,-303.04274977,0.00011898,2]
[347806299,1736119839293,-7196.95725023,0.00011898,2]
[347806300,1736119839304,-108.9075737,0.00011899,2]
[347806301,1736119839314,-500.0,0.00011899,2]
[347806302,1736119839324,-500.0,0.00011899,2]
[347806303,1736119839337,-500.0,0.00011899,2]
[347806304,1736119839347,-222.58377241,0.00011899,2]
[347806305,1736119839357,-500.0,0.00011899,2]
[347806306,1736119839366,-500.0,0.00011899,2]
[347806307,1736119839377,-500.0,0.00011899,2]
[347806308,1736119839387,-527.63,0.00011899,2]
[347806309,1736119839397,-500.0,0.00011899,2]
[347806310,1736119839407,-500.0,0.00011899,2]
[347806311,1736119839417,-500.0,0.00011899,2]
[347806312,1736119839427,-500.0,0.00011899,2]
[347806313,1736119839437,-591.37540323,0.00011899,2]
[347806314,1736119839447,-500.0,0.00011899,2]
[347806315,1736119839457,-500.0,0.00011899,2]
[347806316,1736119839467,-500.0,0.00011899,2]
[347806317,1736119839476,-500.0,0.00011899,2]
[347806318,1736119839486,-500.0,0.00011899,2]
[347806319,1736119839496,-0.62329913,0.00011899,2]
[347806320,1736119839518,-499.37670087,0.00011899,2]
[347806321,1736119839528,-500.0,0.00011899,2]
[347806322,1736119839538,-500.0,0.00011899,2]
[347806323,1736119839548,-500.0,0.00011899,2]
[347806324,1736119839557,-500.0,0.00011899,2]
[347806325,1736119839566,-500.0,0.00011899,2]
[347806326,1736119839576,-500.0,0.00011899,2]
[347806327,1736119839585,-500.0,0.00011899,2]
[347806328,1736119839594,-500.0,0.00011899,2]
[347806329,1736119839604,-570.3,0.00011899,2]
[347806330,1736119839613,-500.0,0.00011899,2]
[347806331,1736119839622,-500.0,0.00011899,2]
[347806332,1736119839631,-280.2460035,0.00011899,2]
[347806333,1736119839641,-425.27648481,0.00011899,2]
[347806334,1736119839650,-500.0,0.00011899,2]
[347806335,1736119839660,-500.0,0.00011899,2]
[347806336,1736119839669,-500.0,0.00011899,2]
[347806337,1736119839679,-500.0,0.00011899,2]
[347806338,1736119839688,-500.0,0.00011899,2]
[347806339,1736119839698,-500.0,0.00011899,2]
[347806340,1736119839708,-500.0,0.00011899,2]
[347806341,1736119839717,-500.0,0.00011899,2]
[347806342,1736119839727,-500.0,0.00011899,2]
[347806343,1736119839736,-12.55741844,0.00011899,2]
[347806344,1736119839771,-500.0,0.00011819,2]
[347806345,1736119839779,-73.198,0.00011899,2]
[347806351,1736119840171,-197.58619199,0.0001176,2]
[347806353,1736119840181,-500.0,0.00011819,2]
[347806355,1736119840190,-302.41380801,0.00011819,2]
[347806357,1736119840202,-197.58619199,0.00011819,2]
[347806360,1736119840211,-503.44415425,0.00011819,2]
[347806363,1736119840222,-5450.50851035,0.00011898,2]
[347806367,1736119840245,-2049.49148965,0.00011898,2]
[347806368,1736119840255,-7500.0,0.00011898,2]
[347806370,1736119840266,-4400.63875044,0.00011898,2]
[347806371,1736119840275,-414.24458156,0.00011899,2]
[347806373,1736119840285,-500.0,0.00011899,2]
[347806374,1736119840294,-500.0,0.00011899,2]
[347806375,1736119840304,-500.0,0.00011899,2]
[347806376,1736119840314,-619.65,0.00011899,2]
[347806377,1736119840324,-500.0,0.00011899,2]
[347806378,1736119840337,-500.0,0.00011899,2]
[347806379,1736119840348,-500.0,0.00011899,2]
[347806380,1736119840358,-500.0,0.00011899,2]
[347806381,1736119840367,-500.0,0.00011899,2]
[347806382,1736119840378,-500.0,0.00011899,2]
[347806383,1736119840388,-500.0,0.00011899,2]
[347806384,1736119840398,-500.0,0.00011899,2]
[347806385,1736119840409,-500.0,0.00011899,2]
[347806386,1736119840419,-500.0,0.00011899,2]
[347806387,1736119840429,-500.0,0.00011899,2]
[347806388,1736119840439,-500.0,0.00011899,2]
[347806389,1736119840449,-500.0,0.00011899,2]
[347806390,1736119840458,-500.0,0.00011899,2]
[347806391,1736119840468,-304.41582103,0.00011899,2]
[347806392,1736119840478,-500.0,0.00011899,2]
[347806393,1736119840487,-500.0,0.00011899,2]
[347806394,1736119840497,-500.0,0.00011899,2]
[347806395,1736119840507,-500.0,0.00011899,2]
[347806396,1736119840517,-500.0,0.00011899,2]
[347806397,1736119840527,-500.0,0.00011899,2]
[347806398,1736119840536,-500.0,0.00011899,2]
[347806399,1736119840546,-500.0,0.00011899,2]
[347806400,1736119840557,-500.0,0.00011899,2]
[347806401,1736119840566,-500.0,0.00011899,2]
[347806402,1736119840575,-500.0,0.00011899,2]
[347806403,1736119840585,-500.0,0.00011899,2]
[347806404,1736119840594,-500.0,0.00011899,2]
[347806405,1736119840604,-500.0,0.00011899,2]
[347806406,1736119840613,-500.0,0.00011899,2]
[347806407,1736119840624,-500.0,0.00011899,2]
[347806408,1736119840633,-500.0,0.00011899,2]
[347806409,1736119840643,-500.0,0.00011899,2]
[347806410,1736119840652,-500.0,0.00011899,2]
[347806411,1736119840662,-500.0,0.00011899,2]
[347806412,1736119840671,-500.0,0.00011899,2]
[347806413,1736119840681,-534.44,0.00011899,2]
[347806414,1736119840691,-500.0,0.00011899,2]
[347806415,1736119840700,-500.0,0.00011899,2]
[347806417,1736119840709,-500.0,0.00011899,2]
[347806418,1736119840719,-500.0,0.00011899,2]
[347806420,1736119840728,-500.0,0.00011899,2]
[347806421,1736119840738,-500.0,0.00011899,2]
[347806422,1736119840747,-500.0,0.00011899,2]
[347806424,1736119840757,-500.0,0.00011899,2]
[347806426,1736119840768,-500.0,0.00011899,2]
[347806427,1736119840778,-500.0,0.00011899,2]
[347806429,1736119840788,-500.0,0.00011899,2]
[347806431,1736119840798,-537.7,0.00011899,2]
[347806433,1736119840808,-500.0,0.00011899,2]
[347806435,1736119840817,-500.0,0.00011899,2]
[347806437,1736119840827,-600.8643338,0.00011899,2]
[347806439,1736119840836,-500.0,0.00011899,2]
[347806441,1736119840846,-500.0,0.00011899,2]
[347806443,1736119840855,-500.0,0.00011899,2]
[347806446,1736119840865,-500.0,0.00011899,2]
[347806449,1736119840874,-500.0,0.00011899,2]
[347806452,1736119840884,-500.0,0.00011899,2]
[347806455,1736119840894,-500.0,0.00011899,2]
[347806458,1736119840903,-500.0,0.00011899,2]
[347806461,1736119840913,-500.0,0.00011899,2]
[347806464,1736119840922,-500.0,0.00011899,2]
[347806467,1736119840932,-500.0,0.00011899,2]
[347806470,1736119840942,-500.0,0.00011899,2]
[347806473,1736119840951,-500.0,0.00011899,2]
[347806476,1736119840960,-500.0,0.00011899,2]
[347806479,1736119840970,-500.0,0.00011899,2]
[347806482,1736119840980,-500.0,0.00011899,2]
[347806484,1736119840989,-500.0,0.00011899,2]
[347806486,1736119840999,-500.0,0.00011899,2]
[347806488,1736119841010,-500.0,0.00011899,2]
[347806490,1736119841019,-500.0,0.00011899,2]
[347806491,1736119841029,-500.0,0.00011899,2]
[347806492,1736119841039,-500.0,0.00011899,2]
[347806493,1736119841049,-500.0,0.00011899,2]
[347806494,1736119841059,-500.0,0.00011899,2]
[347806495,1736119841114,-500.0,0.00011899,2]
[347806496,1736119841124,-500.0,0.00011899,2]
[347806497,1736119841133,-500.0,0.00011899,2]
[347806498,1736119841142,-500.0,0.00011899,2]
[347806499,1736119841152,-500.0,0.00011899,2]
[347806500,1736119841161,-500.0,0.00011899,2]
[347806501,1736119841170,-500.0,0.00011899,2]
[347806502,1736119841180,-500.0,0.00011899,2]
[347806503,1736119841190,-500.0,0.00011899,2]
[347806504,1736119841200,-646.59,0.00011899,2]
[347806505,1736119841209,-500.0,0.00011899,2]
[347806506,1736119841219,-500.0,0.00011899,2]
[347806507,1736119841228,-608.38,0.00011899,2]
[347806508,1736119841239,-500.0,0.00011899,2]
[347806509,1736119841248,-414.25,0.00011899,2]
[347806510,1736119841257,-500.0,0.00011899,2]
[347806511,1736119841266,-500.0,0.00011899,2]
[347806512,1736119841276,-500.0,0.00011899,2]
[347806513,1736119841285,-500.0,0.00011899,2]
[347806514,1736119841295,-597.4,0.00011899,2]
[347806515,1736119841304,-500.0,0.00011899,2]
[347806516,1736119841314,-500.0,0.00011899,2]
[347806517,1736119841323,-500.0,0.00011899,2]
[347806518,1736119841335,-500.0,0.00011899,2]
[347806519,1736119841345,-500.0,0.00011899,2]
[347806520,1736119841355,-500.0,0.00011899,2]
[347806521,1736119841364,-500.0,0.00011899,2]
[347806522,1736119841375,-500.0,0.00011899,2]
[347806523,1736119841384,-500.0,0.00011899,2]
[347806524,1736119841394,-500.0,0.00011899,2]
[347806525,1736119841405,-500.0,0.00011899,2]
[347806526,1736119841414,-500.0,0.00011899,2]
[347806527,1736119841425,-500.0,0.00011899,2]
[347806528,1736119841434,-500.0,0.00011899,2]
[347806529,1736119841444,-500.0,0.00011899,2]
[347806530,1736119841454,-500.0,0.00011899,2]
[347806531,1736119841464,-500.0,0.00011899,2]
[347806532,1736119841474,-500.0,0.00011899,2]
[347806533,1736119841483,-441.20845842,0.00011899,2]
[347806534,1736119841492,-500.0,0.00011899,2]
[347806535,1736119841502,-500.0,0.00011899,2]
[347806536,1736119841512,-500.0,0.00011899,2]
[347806537,1736119841522,-500.0,0.00011899,2]
[347806538,1736119841531,-500.0,0.00011899,2]
[347806539,1736119841541,-500.0,0.00011899,2]
[347806540,1736119841550,-500.0,0.00011899,2]
[347806541,1736119841560,-500.0,0.00011899,2]
[347806542,1736119841569,-500.0,0.00011899,2]
[347806543,1736119841578,-500.0,0.00011899,2]
[347806544,1736119841588,-500.0,0.00011899,2]
[347806545,1736119841597,-500.0,0.00011899,2]
[347806546,1736119841606,-500.0,0.00011899,2]
[347806547,1736119841616,-500.0,0.00011899,2]
[347806548,1736119841625,-500.0,0.00011899,2]
[347806549,1736119841634,-500.0,0.00011899,2]
[347806550,1736119841644,-500.0,0.00011899,2]
[347806551,1736119841653,-500.0,0.00011899,2]
[347806552,1736119841663,-500.0,0.00011899,2]
[347806553,1736119841672,-500.0,0.00011899,2]
[347806554,1736119841682,-500.0,0.00011899,2]
[347806555,1736119841691,-500.0,0.00011899,2]
[347806556,1736119841701,-500.0,0.00011899,2]
[347806557,1736119841711,-500.0,0.00011899,2]
[347806558,1736119841721,-500.0,0.00011899,2]
[347806559,1736119841730,-500.0,0.00011899,2]
[347806560,1736119841740,-500.0,0.00011899,2]
[347806561,1736119841750,-500.0,0.00011899,2]
[347806562,1736119841759,-500.0,0.00011899,2]
[347806563,1736119841769,-500.0,0.00011899,2]
[347806564,1736119841779,-500.0,0.00011899,2]
[347806565,1736119841788,-500.0,0.00011899,2]
[347806566,1736119841797,-500.0,0.00011899,2]
[347806567,1736119841806,-500.0,0.00011899,2]
[347806568,1736119841815,-500.0,0.00011899,2]
[347806569,1736119841825,-500.0,0.00011899,2]
[347806570,1736119841833,-500.0,0.00011899,2]
[347806571,1736119841842,-500.0,0.00011899,2]
[347806572,1736119841852,-500.0,0.00011899,2]
[347806573,1736119841861,-500.0,0.00011899,2]
[347806574,1736119841870,-500.0,0.00011899,2]
[347806575,1736119841880,-500.0,0.00011899,2]
[347806576,1736119841889,-500.0,0.00011899,2]
[347806577,1736119841898,-500.0,0.00011899,2]
[347806578,1736119841907,-500.0,0.00011899,2]
[347806579,1736119841917,-500.0,0.00011899,2]
[347806580,1736119841926,-500.0,0.00011899,2]
[347806581,1736119841935,-500.0,0.00011899,2]
[347806582,1736119841945,-500.0,0.00011899,2]
[347806583,1736119841954,-500.0,0.00011899,2]
[347806584,1736119841964,-607.43,0.00011899,2]
[347806585,1736119841975,-500.0,0.00011899,2]
[347806586,1736119841986,-500.0,0.00011899,2]
[347806587,1736119841995,-500.0,0.00011899,2]
[347806588,1736119842005,-500.0,0.00011899,2]
[347806589,1736119842016,-500.0,0.00011899,2]
[347806590,1736119842025,-500.0,0.00011899,2]
[347806591,1736119842035,-500.0,0.00011899,2]
[347806592,1736119842045,-500.0,0.00011899,2]
[347806593,1736119842055,-500.0,0.00011899,2]
[347806594,1736119842064,-176.02578641,0.00011899,2]
[347806595,1736119842074,-628.5,0.00011899,2]
[347806596,1736119842083,-500.0,0.00011899,2]
[347806597,1736119842092,-500.0,0.00011899,2]
[347806598,1736119842102,-500.0,0.00011899,2]
[347806599,1736119842111,-500.0,0.00011899,2]
[347806600,1736119842120,-500.0,0.00011899,2]
[347806601,1736119842131,-500.0,0.00011899,2]
[347806602,1736119842141,-500.0,0.00011899,2]
[347806603,1736119842151,-500.0,0.00011899,2]
[347806604,1736119842162,-500.0,0.00011899,2]
[347806605,1736119842171,-500.0,0.00011899,2]
[347806606,1736119842181,-500.0,0.00011899,2]
[347806607,1736119842190,-500.0,0.00011899,2]
[347806608,1736119842200,-500.0,0.00011899,2]
[347806609,1736119842209,-622.82,0.00011899,2]
[347806610,1736119842219,-500.0,0.00011899,2]
[347806611,1736119842228,-500.0,0.00011899,2]
[347806612,1736119842238,-569.62,0.00011899,2]
[347806613,1736119842248,-500.0,0.00011899,2]
[347806614,1736119842258,-500.0,0.00011899,2]
[347806615,1736119842267,-555.49,0.00011899,2]
[347806616,1736119842276,-500.0,0.00011899,2]
[347806617,1736119842286,-500.0,0.00011899,2]
[347806618,1736119842295,-500.0,0.00011899,2]
[347806619,1736119842305,-500.0,0.00011899,2]
[347806620,1736119842315,-500.0,0.00011899,2]
[347806621,1736119842325,-501.46,0.00011899,2]
[347806622,1736119842338,-595.6,0.00011899,2]
[347806623,1736119842348,-577.19,0.00011899,2]
[347806624,1736119842357,-500.0,0.00011899,2]
[347806625,1736119842367,-500.0,0.00011899,2]
[347806626,1736119842377,-331.30582078,0.00011899,2]
[347806627,1736119842387,-500.0,0.00011899,2]
[347806628,1736119842396,-500.0,0.00011899,2]
[347806629,1736119842406,-500.0,0.00011899,2]
[347806630,1736119842415,-500.0,0.00011899,2]
[347806631,1736119842425,-500.0,0.00011899,2]
[347806632,1736119842434,-29531.82972242,0.000119,2]
[347806633,1736119842443,-336682.57526173,0.000119,2]
[347806634,1736119842459,-43327.19476353,0.000119,2]
[347806635,1736119842470,-9856.00308282,0.000119,2]
[347806636,1736119842481,-385.28902785,0.000119,2]
[347806637,1736119842569,-1491.68,0.00010797,2]
[347806638,1736119842579,-197.58619197,0.0001178,2]
[347806639,1736119842588,-1523.09392843,0.000119,2]
[347806640,1736119842602,-1226.34999044,0.000119,2]
[347806642,1736119843424,-271.92848716,0.00011899,2]
[347806643,1736119843436,-228.07151284,0.00011899,2]
[347806644,1736119843446,-894.0,0.00011899,2]
[347806645,1736119843455,-3417.92848716,0.000119,2]
[347806646,1736119843467,-954.75535292,0.000119,2]
[347806647,1736119843484,-749.60127,0.000119,2]
[347806648,1736119843639,-500.0,0.00011819,2]
[347806649,1736119843649,-486.6887931,0.00011819,2]
[347806650,1736119843662,-13.3112069,0.00011819,2]
[347806651,1736119843671,-370.6387316,0.00011898,2]
[347806898,1736119846327,-197.58619197,0.000118,2]
[347806900,1736119846340,-500.0,0.00011819,2]
[347806902,1736119846351,-129.3612684,0.00011898,2]
[347806904,1736119846361,-500.0,0.00011898,2]
[347806906,1736119846371,-500.0,0.00011899,2]
[347806908,1736119846380,-500.0,0.00011899,2]
[347806910,1736119846390,-1672.47865775,0.000119,2]
[347806912,1736119846402,-54164.89575529,0.000119,2]
[347806937,1736119846637,-500.0,0.00011819,2]
[347806939,1736119846646,-103868.86842163,0.000119,2]
[347807335,1736121031456,-734.48,8.332e-05,2]
[347807336,1736121031465,-117.67122667,0.00010033,2]
[347807337,1736121031476,-53.03877333,0.00010033,2]
[347807338,1736121031488,-236.96820196,0.00010037,2]
[347807339,1736121031498,-250.0,0.00010053,2]
[347807340,1736121031509,-1000.0,0.00010061,2]
[347807341,1736121031517,-2506.71415772,0.00010061,2]
[347807342,1736121031528,-439.42263867,0.00010061,2]
[347807343,1736121031564,-761.54733521,0.00010061,2]
[347807344,1736121031752,-20383.9166847,0.00010061,2]
[347807345,1736121031762,-153.22,0.00010137,2]
[347807346,1736121031771,-236.96820196,0.00010448,2]
[347807347,1736121031781,-734.48,0.00010596,2]
[347807348,1736121031790,-29.2928948,0.00010859,2]
[347807349,1736121031801,-207.67530716,0.00010859,2]
[347807350,1736121031810,-274.57,0.00010941,2]
[347807351,1736121031820,-150.0,0.00010958,2]
[347807352,1736121031829,-150.0,0.00010959,2]
[347807353,1736121031839,-373.02463842,0.00010959,2]
[347807354,1736121031850,-988.3344858,0.00010959,2]
[347807355,1736121031915,-512.14087578,0.00010959,2]
[347807356,1736121031925,-150.99,0.00010959,2]
[347807357,1736121031934,-1310.99,0.00010959,2]
[347807358,1736121031944,-1648.02,0.00010959,2]
[347807359,1736121031954,-3730.27578349,0.00010959,2]
[347807360,1736121031966,-3604.72047646,0.00010959,2]
[347807361,1736121031976,-82.01374005,0.00010959,2]
[347807362,1736121031986,-1259.91683126,0.00010959,2]
[347807364,1736121037443,-2333.15316874,0.00010959,2]
[347807365,1736121037454,-477.67,0.00010959,2]
[347807366,1736121037464,-2990.19,0.00010959,2]
[347807367,1736121037473,-1442.16,0.00010959,2]
[347807368,1736121037483,-9999.99,0.00010959,2]
[347807369,1736121037493,-808.81,0.00010959,2]
[347807370,1736121037502,-400.0,0.00010986,2]
[347807371,1736121037512,-128131.25,0.00010986,2]
[347807372,1736121037522,-299.99,0.00010986,2]
[347807373,1736121037531,-291.75,0.00010986,2]
[347807374,1736121037541,-3192.75,0.00010986,2]
[347807375,1736121037551,-1511.52,0.00010986,2]
[347807376,1736121037560,-1520.3,0.0001099,2]
[347807377,1736121037570,-550.0,0.00011,2]
[347807378,1736121037580,-1474.89,0.00011006,2]
[347807379,1736121037590,-1512.87,0.0001101,2]
[347807380,1736121037599,-283.31190351,0.00011014,2]
[347807381,1736121037609,-375.71423491,0.00011014,2]
[347807382,1736121037619,-500.0,0.00011014,2]
[347807383,1736121037628,-500.0,0.00011014,2]
[347807384,1736121037638,-500.0,0.00011014,2]
[347807385,1736121037648,-549.38336753,0.00011014,2]
[347807386,1736121037657,-500.0,0.00011014,2]
[347807387,1736121037667,-551.58,0.00011014,2]
[347807388,1736121037676,-566.37,0.00011014,2]
[347807389,1736121037686,-500.0,0.00011014,2]
[347807390,1736121037695,-526.59,0.00011014,2]
[347807391,1736121037705,-500.0,0.00011014,2]
[347807392,1736121037714,-500.0,0.00011014,2]
[347807394,1736121037724,-500.0,0.00011014,2]
[347807397,1736121037736,-554.29,0.00011014,2]
[347807399,1736121037746,-500.0,0.00011014,2]
[347807401,1736121037755,-500.0,0.00011014,2]
[347807403,1736121037765,-500.0,0.00011014,2]
[347807405,1736121037774,-500.0,0.00011014,2]
[347807406,1736121037783,-500.0,0.00011014,2]
[347807408,1736121037792,-500.0,0.00011014,2]
[347807410,1736121037802,-500.0,0.00011014,2]
[347807412,1736121037811,-1847.22,0.00011014,2]
[347807414,1736121037821,-500.0,0.00011014,2]
[347807416,1736121037830,-579.45,0.00011014,2]
[347807419,1736121037840,-500.0,0.00011014,2]
[347807421,1736121037849,-500.0,0.00011014,2]
[347807423,1736121037858,-500.0,0.00011014,2]
[347807425,1736121037868,-500.0,0.00011014,2]
[347807427,1736121037877,-500.0,0.00011014,2]
[347807429,1736121037886,-500.0,0.00011014,2]
[347807431,1736121037895,-500.0,0.00011014,2]
[347807433,1736121037905,-500.0,0.00011014,2]
[347807435,1736121037914,-304.35728621,0.00011014,2]
[347807437,1736121037923,-500.0,0.00011014,2]
[347807439,1736121037932,-500.0,0.00011014,2]
[347807441,1736121037942,-500.0,0.00011014,2]
[347807443,1736121037951,-500.0,0.00011014,2]
[347807445,1736121037960,-500.0,0.00011014,2]
[347807447,1736121037970,-500.0,0.00011014,2]
[347807449,1736121037979,-1481.8,0.00011014,2]
[347807451,1736121037990,-1495.24,0.00011015,2]
[347807453,1736121037999,-1497.04,0.00011015,2]
[347807455,1736121038009,-1487.49,0.00011015,2]
[347807457,1736121038019,-1486.45,0.00011015,2]
[347807459,1736121038029,-163.49,0.00011015,2]
[347807461,1736121038038,-7412.287482,0.00011015,15]
[347807463,1736121038050,-1079.078,0.00011015,15]
[347807465,1736121038061,-1454.3225435,0.00011015,15]
[347807467,1736121038072,-916.34,0.00011015,15]
[347807470,1736121038090,-1802.36640994,0.00011015,15]
[347807472,1736121038100,-1036.36,0.00011015,15]
[347807475,1736121038112,-303.7619939,0.00011015,15]
[347807477,1736121038123,-4597.87245236,0.00011015,15]
[347807481,1736121038153,-500.0,0.00011014,2]
[347807483,1736121038163,-3042.92023151,0.00011015,15]
[347807611,1736121039568,-807.94514977,0.00011015,15]
[347807613,1736121039579,-577.46205938,0.00011015,15]
[347807615,1736121039591,-289.90052373,0.00011015,15]
[347807617,1736121039603,-8839.91581175,0.00011015,15]
[347807672,1736121040113,-1199.79854666,0.00011015,15]
[347807675,1736121040124,-665.31684,0.00011015,15]
[347807678,1736121040147,-23523.02331838,0.00011015,15]
[347807725,1736121042469,-58164.77227491,0.00011015,15]
[347807726,1736121042479,-167.08,0.00011028,2]
[347807727,1736121042488,-771.75,0.00011041,2]
[347807728,1736121042498,-437.68,0.00011041,2]
[347807729,1736121042507,-771.75,0.00011041,2]
[347807730,1736121042516,-437.68,0.00011041,2]
[347807731,1736121042525,-771.75,0.00011041,2]
[347807732,1736121042534,-437.68,0.00011041,2]
[347807733,1736121042544,-771.75,0.00011041,2]
[347807734,1736121042554,-437.68,0.00011041,2]
[347807735,1736121042563,-437.68,0.00011041,2]
[347807736,1736121042573,-770.25,0.00011041,2]
[347807737,1736121042583,-437.68,0.00011041,2]
[347807738,1736121042592,-437.68,0.00011041,2]
[347807739,1736121042602,-1472.74,0.00011051,2]
[347807740,1736121042611,-1472.05,0.00011058,2]
[347807741,1736121042620,-1527.72,0.00011066,2]
[347807742,1736121042629,-1498.64,0.00011076,2]
[347807743,1736121042639,-182.65,0.00011078,2]
[347807744,1736121042649,-1490.1,0.00011088,2]
[347807745,1736121042658,-2429.63060398,0.000111,2]
[347807746,1736121042667,-771.75,0.000111,2]
[347807747,1736121042677,-437.68,0.000111,2]
[347807748,1736121042688,-500.0,0.00011101,2]
[347807749,1736121042698,-500.0,0.00011101,2]
[347807750,1736121042708,-500.0,0.00011101,2]
[347807751,1736121042719,-237.44863776,0.00011101,2]
[347807752,1736121042728,-500.0,0.00011101,2]
[347807753,1736121042737,-500.0,0.00011101,2]
[347807754,1736121042746,-500.0,0.00011101,2]
[347807755,1736121042755,-500.0,0.00011101,2]
[347807756,1736121042766,-500.0,0.00011101,2]
[347807757,1736121042776,-500.0,0.00011101,2]
[347807758,1736121042786,-500.0,0.00011101,2]
[347807759,1736121042795,-500.0,0.00011101,2]
[347807760,1736121042804,-500.0,0.00011101,2]
[347807761,1736121042814,-500.0,0.00011101,2]
[347807762,1736121042823,-500.0,0.00011101,2]
[347807763,1736121042833,-500.0,0.00011101,2]
[347807764,1736121042842,-500.0,0.00011101,2]
[347807766,1736121042852,-500.0,0.00011101,2]
[347807767,1736121042862,-500.0,0.00011101,2]
[347807768,1736121042870,-500.0,0.00011101,2]
[347807769,1736121042879,-500.0,0.00011101,2]
[347807770,1736121042888,-500.0,0.00011101,2]
[347807771,1736121042898,-500.0,0.00011101,2]
[347807772,1736121042908,-500.0,0.00011101,2]
[347807773,1736121042918,-500.0,0.00011101,2]
[347807774,1736121042928,-500.0,0.00011101,2]
[347807775,1736121042937,-500.0,0.00011101,2]
[347807776,1736121042947,-527.35,0.00011101,2]
[347807777,1736121042955,-500.0,0.00011101,2]
[347807778,1736121042964,-500.0,0.00011101,2]
[347807779,1736121042974,-500.0,0.00011101,2]
[347807780,1736121042983,-500.0,0.00011101,2]
[347807781,1736121042993,-500.0,0.00011101,2]
[347807782,1736121043002,-500.0,0.00011101,2]
[347807783,1736121043013,-500.0,0.00011101,2]
[347807784,1736121043022,-500.0,0.00011101,2]
[347807785,1736121043031,-500.0,0.00011101,2]
[347807786,1736121043040,-500.0,0.00011101,2]
[347807787,1736121043049,-500.0,0.00011101,2]
[347807788,1736121043058,-500.0,0.00011101,2]
[347807789,1736121043067,-500.0,0.00011101,2]
[347807790,1736121043077,-500.0,0.00011101,2]
[347807791,1736121043086,-500.0,0.00011101,2]
[347807792,1736121043095,-555.63,0.00011101,2]
[347807793,1736121043104,-500.0,0.00011101,2]
[347807794,1736121043113,-500.0,0.00011101,2]
[347807795,1736121043123,-500.0,0.00011101,2]
[347807796,1736121043132,-500.0,0.00011101,2]
[347807797,1736121043142,-500.0,0.00011101,2]
[347807798,1736121043151,-500.0,0.00011101,2]
[347807799,1736121043160,-500.0,0.00011101,2]
[347807800,1736121043169,-500.0,0.00011101,2]
[347807801,1736121043179,-500.0,0.00011101,2]
[347807802,1736121043188,-500.0,0.00011101,2]
[347807803,1736121043198,-500.0,0.00011101,2]
[347807804,1736121043208,-500.0,0.00011101,2]